bitfinex-derivatives/quotes_BNBF0:USTF0_20250330
["timestamp","ask_amount","ask_price","bid_price","bid_amount"]
[1743362505275,1.631,603.64,602.83,0.62019895]
[1743362507977,1.631,603.64,602.83,0.33176849]
[1743362508975,1.631,603.64,602.85,2.52036396]
[1743362509975,1.631,603.64,602.94,2.52036396]
[1743362511774,1.631,603.64,602.92,2.52036396]
[1743362512580,1.631,603.64,602.92,2.85208292]
[1743362512882,1.631,603.64,602.93,0.33171346]
[1743362513681,1.631,603.64,602.94,2.52036396]
[1743362513880,1.631,603.64,602.95,0.33170246]
[1743362520485,1.44,603.65,602.95,0.33170246]
[1743362521881,1.44,603.65,603.05,2.52036396]
[1743362522082,1.566,603.64,603.05,2.52036396]
[1743362523783,1.566,603.64,602.95,0.33170246]
[1743362524988,1.298,603.63,602.95,0.33170246]
[1743362533503,1.298,603.63,602.96,2.52036396]
[1743362534698,1.298,603.63,602.99,2.52036396]
[1743362536608,1.298,603.63,603.02,2.52036396]
[1743362537000,1.44,603.65,603.02,2.52036396]
[1743362537205,1.518,603.62,603.02,2.52036396]
[1743362537706,1.518,603.62,603.02,5.04072792]
[1743362537899,1.518,603.62,603.15,2.52036396]
[1743362539102,1.518,603.62,603.23,2.52036396]
[1743362540808,1.553,603.61,603.24,2.52036396]
[1743362542505,1.553,603.61,603.1,0.28835637]
[1743362544003,1.553,603.61,603.03,2.52036396]
[1743362544707,1.553,603.61,603.06,2.52036396]
[1743362545307,1.553,603.61,603.07,0.28837787]
[1743362545709,1.553,603.61,603.1,2.52036396]
[1743362548713,1.553,603.61,603.08,0.2883731]
[1743362550006,1.553,603.61,602.99,2.52036396]
[1743362550409,1.553,603.61,603.0,0.33167495]
[1743362550916,1.553,603.61,603.04,2.52036396]
[1743362551111,1.553,603.61,603.04,2.85201691]
[1743362552715,1.553,603.61,603.19,2.52036396]
[1743362554923,1.553,603.61,603.32,2.52036396]
[1743362557024,1.553,603.61,603.3,2.52036396]
[1743362558820,1.553,603.61,603.27,2.52036396]
[1743362559625,1.553,603.61,603.28,2.52036396]
[1743362560725,1.553,603.61,603.29,2.52036396]
[1743362560924,0.28833128,604.17,603.29,2.52036396]
[1743362561920,3.98322833,604.37,603.29,2.52036396]
[1743362562120,3.60391676,604.36,603.18,2.52036396]
[1743362562319,0.28823814,604.17,603.18,2.52036396]
[1743362562619,0.33093406,604.35,603.18,2.52036396]
[1743362563023,1.607,604.34,603.18,2.52036396]
[1743362563222,0.33094501,604.33,603.19,0.28823814]
[1743362563422,1.86343762,604.33,603.19,0.28823814]
[1743362563827,5.1364258,604.33,603.19,0.28823814]
[1743362564027,1.53249261,604.32,603.19,0.28823814]
[1743362564423,1.53249261,604.32,603.19,2.8086021]
[1743362564930,1.53249261,604.32,603.19,2.52036396]
[1743362565127,1.53249261,604.31,603.19,2.52036396]
[1743362565322,1.53249261,604.31,603.19,2.80860807]
[1743362565323,1.53249261,604.3,603.19,2.80860807]
[1743362565520,1.53249261,604.29,603.19,2.80860807]
[1743362565725,1.53249261,604.28,603.19,2.80860807]
[1743362565923,0.28824411,604.31,603.19,2.80860807]
[1743362565924,1.53249261,604.27,603.19,2.80860807]
[1743362566128,1.53249261,604.3,603.19,2.80860807]
[1743362566329,1.53249261,604.29,603.19,2.80860807]
[1743362566529,1.53249261,604.28,603.19,2.80860807]
[1743362566729,1.533,604.29,603.21,2.52036396]
[1743362566930,2.79139548,604.28,603.21,2.52036396]
[1743362567132,1.53249261,604.27,603.21,2.52036396]
[1743362567631,2.79139548,604.28,603.21,2.52036396]
[1743362567823,1.25890287,604.26,603.21,2.52036396]
[1743362568529,1.25890287,604.25,603.39,2.52036396]
[1743362569330,1.25890287,604.24,603.39,2.52036396]
[1743362569830,1.533,604.29,603.39,2.52036396]
[1743362570630,1.25915044,604.28,603.39,2.52036396]
[1743362571429,1.25915044,604.27,603.39,2.52036396]
[1743362572031,1.25915044,604.26,603.32,0.28820592]
[1743362573131,1.533,604.29,603.32,0.28820592]
[1743362574029,1.533,604.29,603.11,2.52036396]
[1743362574227,1.533,604.29,603.32,0.28823337]
[1743362574629,1.533,604.29,603.12,0.33160896]
[1743362576234,1.533,604.29,603.13,0.28823814]
[1743362576432,1.533,604.29,603.14,0.33159797]
[1743362577228,1.533,604.29,603.17,2.52036396]
[1743362577429,1.533,604.29,603.17,2.85194543]
[1743362579034,1.533,604.29,603.17,0.33158147]
[1743362580137,1.533,604.29,603.22,2.52036396]
[1743362581438,1.533,604.29,603.24,2.52036396]
[1743362581637,1.25873563,604.28,603.24,2.52036396]
[1743362582235,1.335,604.27,603.24,2.52036396]
[1743362582436,2.59373563,604.27,603.24,2.52036396]
[1743362583035,1.25873563,604.26,603.17,0.33158147]
[1743362583534,1.25873563,604.25,603.17,0.33158147]
[1743362584235,1.54699407,604.24,603.18,0.28825844]
[1743362585039,1.25873563,604.23,603.18,0.28825844]
[1743362585540,1.25873563,604.22,603.18,0.28825844]
[1743362585737,2.38673563,604.22,603.18,0.28825844]
[1743362585944,2.38673563,604.22,603.17,0.33158147]
[1743362585945,1.53056914,604.21,603.17,0.33158147]
[1743362586139,1.53056914,604.2,603.18,0.28828471]
[1743362586345,1.53056914,604.19,603.18,0.28828471]
[1743362586540,1.53056914,604.18,603.18,0.28828471]
[1743362586745,1.25873563,604.18,603.18,0.28828471]
[1743362586935,1.53056914,604.17,603.18,0.28828471]
[1743362587140,1.53056914,604.16,603.18,0.28828471]
[1743362587337,1.53056914,604.15,603.18,0.28828471]
[1743362587538,1.53056914,604.14,603.18,0.28828471]
[1743362587737,1.53056914,604.15,603.18,0.28828471]
[1743362587943,1.53056914,604.14,603.18,0.28828471]
[1743362588137,1.53056914,604.15,603.18,0.28828471]
[1743362588338,1.25873563,604.13,603.18,0.28828471]
[1743362588741,1.25873563,604.12,603.18,0.28828471]
[1743362589042,1.25873563,604.12,603.17,0.33158147]
[1743362589245,0.2883062,604.11,603.17,0.33158147]
[1743362590343,1.25873563,604.1,603.17,0.33158147]
[1743362591140,1.25873563,604.09,603.17,0.33158147]
[1743362591939,1.25873563,604.08,603.17,0.33158147]
[1743362592445,1.25873563,604.07,603.17,0.33158147]
[1743362593746,1.25873563,604.06,603.17,0.33158147]
[1743362594446,1.25873563,604.05,603.17,0.33158147]
[1743362594941,1.25873563,604.04,603.17,0.33158147]
[1743362595145,1.25873563,604.04,602.59,2.52036396]
[1743362595146,1.54708961,604.04,603.03,0.28835398]
[1743362595946,0.28835398,604.04,603.03,0.28835398]
[1743362597949,1.52805381,604.09,602.39,2.52036396]
[1743362598151,0.33108197,604.08,602.41,0.3319998]
[1743362598343,0.28843763,604.03,603.01,0.28843763]
[1743362598649,0.28843763,604.03,602.41,2.85236376]
[1743362600352,0.28843763,604.03,602.42,0.28843524]
[1743362600653,0.28843763,604.03,602.44,0.33198326]
[1743362600951,0.33108197,604.08,602.44,0.33198326]
[1743362603454,0.28843285,604.07,602.44,0.33198326]
[1743362603657,0.33109293,604.06,602.44,0.33198326]
[1743362604258,0.28843404,604.05,602.46,2.52036396]
[1743362604454,0.28843404,604.05,602.48,0.33196122]
[1743362605459,1.692,604.04,602.48,0.33196122]
[1743362607562,1.692,604.04,602.54,2.52036396]
[1743362607858,1.692,604.04,602.56,0.33191715]
[1743362608260,0.28842448,604.03,602.56,0.33191715]
[1743362608461,0.28842448,604.03,602.6,2.52036396]
[1743362608662,0.28842448,604.03,602.62,0.3318841]
[1743362610061,1.692,604.04,602.62,0.3318841]
[1743362611058,1.692,604.04,602.64,2.52036396]
[1743362611258,0.28841731,604.03,602.65,0.33186758]
[1743362612865,0.28841731,604.03,602.66,2.52036396]
[1743362613063,1.692,604.04,602.67,0.33185657]
[1743362613458,0.28841014,604.02,602.67,0.33185657]
[1743362613964,0.28841014,604.02,602.74,2.52036396]
[1743362614164,0.28841014,604.02,602.75,0.33181252]
[1743362614861,0.28841014,604.02,602.82,2.52036396]
[1743362615962,1.692,604.04,602.82,2.52036396]
[1743362616461,1.692,604.04,602.8,2.52036396]
[1743362616661,1.692,604.04,602.8,2.85214896]
[1743362617361,0.28839341,604.03,602.8,2.85214896]
[1743362617766,0.28839341,604.03,602.88,2.52036396]
[1743362618666,0.28839341,604.03,602.86,2.52036396]
[1743362619063,1.692,604.04,602.86,2.52036396]
[1743362619262,1.692,604.04,602.87,0.33174647]
[1743362620564,0.33109293,604.06,602.87,0.33174647]
[1743362622364,0.2883731,604.05,602.87,0.33174647]
[1743362623469,1.249,604.04,602.87,0.33174647]
[1743362624569,1.126,604.03,602.87,0.33174647]
[1743362629371,0.28838146,604.02,602.87,0.33174647]
[1743362630772,0.28838146,604.02,603.09,2.52036396]
[1743362630972,1.126,604.03,603.09,2.52036396]
[1743362631269,0.28834323,604.01,603.09,2.52036396]
[1743362632472,0.28834323,604.01,603.1,2.52036396]
[1743362633475,1.207,604.0,603.1,2.52036396]
[1743362634769,1.207,604.0,603.09,2.52036396]
[1743362636470,1.207,604.0,603.06,2.52036396]
[1743362638279,1.207,604.0,603.02,0.28832173]
[1743362639975,1.207,604.0,602.87,0.33174647]
[1743362640177,1.207,604.0,602.84,0.33176298]
[1743362641283,1.207,604.0,602.85,0.2883492]
[1743362641582,1.207,604.0,602.86,0.33175198]
[1743362643876,1.12,603.99,602.86,0.33175198]
[1743362644079,2.41,603.99,602.86,0.33175198]
[1743362646688,2.41,603.99,602.99,2.52036396]
[1743362646888,2.41,603.99,602.99,2.85204441]
[1743362647089,1.53277046,603.98,602.99,2.85204441]
[1743362647291,1.25947689,603.98,602.99,2.85204441]
[1743362648287,1.25947689,603.97,602.99,2.85204441]
[1743362648885,1.25947689,603.97,602.99,0.33168045]
[1743362649083,2.41,603.99,602.99,0.33168045]
[1743362650091,3.66963668,603.99,602.99,0.33168045]
[1743362655498,1.53308224,603.98,602.99,0.33168045]
[1743362655701,1.53308224,603.97,602.99,0.33168045]
[1743362656399,1.25963668,603.96,602.99,0.33168045]
[1743362656999,1.25963668,603.95,602.99,0.33168045]
[1743362657898,1.25963668,603.94,602.99,0.33168045]
[1743362658894,1.25963668,603.93,602.99,0.33168045]
[1743362660003,1.25963668,603.92,602.99,0.33168045]
[1743362660798,1.25963668,603.91,602.99,0.33168045]
[1743362661504,1.25963668,603.9,602.99,0.33168045]
[1743362662205,1.25963668,603.89,602.99,0.33168045]
[1743362662906,0.28838743,603.93,602.99,0.33168045]
[1743362664004,1.25963668,603.97,602.99,0.33168045]
[1743362664402,0.28838026,603.93,602.99,0.33168045]
[1743362667010,1.25963668,603.97,602.99,0.33168045]
[1743362667410,0.28838026,603.93,602.99,0.33168045]
[1743362670110,1.25963668,603.94,602.99,0.33168045]
[1743362670504,1.53384187,603.93,602.99,0.33168045]
[1743362670713,1.53384187,603.92,602.99,0.33168045]
[1743362670913,1.25963668,603.91,602.99,0.33168045]
[1743362671306,1.25963668,603.9,602.99,0.33168045]
[1743362671914,1.25963668,603.89,602.99,0.33168045]
[1743362672713,1.25963668,603.88,602.99,0.33168045]
[1743362673214,1.53397382,603.97,602.99,0.33168045]
[1743362673415,1.53397382,603.96,602.99,0.33168045]
[1743362673618,1.53397382,603.95,602.99,0.33168045]
[1743362673817,1.53397382,603.94,602.99,0.33168045]
[1743362674118,1.53397382,603.93,602.99,0.33168045]
[1743362674320,1.53397382,603.92,602.99,0.33168045]
[1743362674619,1.583,603.92,602.99,0.33168045]
[1743362674813,1.26051967,603.91,602.99,0.33168045]
[1743362675418,1.26051967,603.9,602.99,0.33168045]
[1743362676115,1.26051967,603.89,602.99,0.33168045]
[1743362676718,1.583,603.92,602.99,0.33168045]
[1743362677520,1.26082808,603.91,602.99,0.33168045]
[1743362677921,1.26082808,603.9,602.99,0.33168045]
[1743362678922,1.26082808,603.89,602.99,0.33168045]
[1743362679924,1.583,603.92,603.01,2.52036396]
[1743362679925,1.26082808,603.88,603.01,2.52036396]
[1743362680518,1.583,603.92,603.01,2.52036396]
[1743362681119,1.53464953,603.91,603.01,2.52036396]
[1743362681321,1.583,603.92,603.0,2.52036396]
[1743362681519,1.26102142,603.9,603.0,2.52036396]
[1743362682328,1.26102142,603.89,603.0,2.52036396]
[1743362682621,1.26102142,603.89,603.07,2.52036396]
[1743362683327,1.26102142,603.88,603.07,2.52036396]
[1743362683928,1.583,603.92,603.07,2.52036396]
[1743362684123,1.53466867,603.91,603.07,2.52036396]
[1743362684329,1.26103679,603.9,603.12,2.52036396]
[1743362684929,2.83303679,603.89,603.12,2.52036396]
[1743362685930,1.572,603.89,603.04,0.2883265]
[1743362688132,1.572,603.89,603.03,2.52036396]
[1743362688430,1.572,603.89,602.99,0.33168045]
[1743362688431,1.572,603.89,603.04,0.28831934]
[1743362689030,1.572,603.89,603.05,0.33164745]
[1743362690335,1.572,603.89,603.05,2.85201141]
[1743362691529,1.572,603.89,603.1,2.52036396]
[1743362691729,1.572,603.89,603.11,0.33161446]
[1743362700543,1.628,603.88,603.11,0.33161446]
[1743362700739,3.198,603.88,603.11,0.33161446]
[1743362710051,1.606,603.87,603.11,0.33161446]
[1743362716847,1.196,603.86,603.11,0.33161446]
[1743362723358,1.196,603.86,603.21,2.52036396]
[1743362723656,1.196,603.86,603.22,0.33155399]
[1743362725061,1.196,603.86,603.26,2.52036396]
[1743362725261,1.196,603.86,603.27,0.33152651]
[1743362730459,1.254,603.85,603.27,0.33152651]
[1743362732057,1.254,603.85,603.3,2.52036396]
[1743362732261,1.254,603.85,603.31,0.33150453]
[1743362733463,1.254,603.85,603.31,2.85186849]
[1743362735763,1.254,603.85,603.31,0.33150453]
[1743362736967,1.254,603.85,603.38,2.52036396]
[1743362738261,1.254,603.85,603.48,2.52036396]
[1743362739266,1.254,603.85,603.49,2.52036396]
[1743362739666,1.249,603.84,603.49,2.52036396]
[1743362740068,1.249,603.84,603.51,2.52036396]
[1743362741867,1.249,603.84,603.62,2.52036396]
[1743362743269,1.249,603.84,603.5,2.52036396]
[1743362744270,1.249,603.84,603.51,2.52036396]
[1743362745867,1.249,603.84,603.54,2.52036396]
[1743362747069,1.249,603.84,603.55,2.52036396]
[1743362748572,1.249,603.84,603.53,2.52036396]
[1743362750574,1.249,603.84,603.48,2.52036396]
[1743362752069,1.249,603.84,603.49,2.52036396]
[1743362753771,1.249,603.84,603.62,2.52036396]
[1743362755168,1.249,603.84,603.63,2.52036396]
[1743362756677,1.249,603.84,603.52,0.28818324]
[1743362756873,1.249,603.84,603.49,2.52036396]
[1743362757271,1.249,603.84,603.52,0.28819876]
[1743362759986,1.249,603.84,603.52,2.52036396]
[1743362760486,1.249,603.84,603.52,2.80857585]
[1743362761487,1.249,603.84,603.52,0.28821189]
[1743362762986,1.249,603.84,603.49,2.52036396]
[1743362763490,1.249,603.84,603.52,0.28821189]
[1743362766090,1.249,603.84,603.43,2.52036396]
[1743362766292,1.249,603.84,603.51,0.28823218]
[1743362766689,1.249,603.84,603.5,2.52036396]
[1743362767389,1.249,603.84,603.51,0.28822382]
[1743362767697,1.155,603.86,603.51,0.28822382]
[1743362769093,1.155,603.86,603.49,2.52036396]
[1743362769295,1.155,603.86,603.5,2.52036396]
[1743362769589,1.155,603.86,603.51,0.28822263]
[1743362771995,1.155,603.86,603.5,2.52036396]
[1743362772196,1.155,603.86,603.49,2.52036396]
[1743362773291,1.155,603.86,603.5,0.28820831]
[1743362775092,1.155,603.86,603.44,2.52036396]
[1743362775296,1.155,603.86,603.5,0.28821666]
[1743362778096,1.155,603.86,603.49,2.52036396]
[1743362779399,1.155,603.86,603.5,0.28820592]
[1743362780794,1.155,603.86,603.57,2.52036396]
[1743362782196,1.155,603.86,603.53,2.52036396]
[1743362782395,1.155,603.86,603.53,2.80856033]
[1743362783605,1.155,603.86,603.66,2.52036396]
[1743362784701,1.155,603.86,603.51,2.52036396]
[1743362784702,1.155,603.86,603.65,2.52036396]
[1743362786501,1.155,603.86,603.51,0.28820353]
[1743362787006,1.155,603.86,603.31,0.33150453]
[1743362788206,1.155,603.86,603.32,0.28829068]
[1743362788403,1.094,603.85,603.32,0.28829068]
[1743362790109,1.094,603.85,603.31,0.33150453]
[1743362791303,1.094,603.85,603.32,0.28831098]
[1743362793119,1.094,603.85,603.31,0.33150453]
[1743362794321,1.094,603.85,603.32,0.28831337]
[1743362796022,1.094,603.85,603.31,0.33150453]
[1743362797018,1.697,603.84,603.31,0.33150453]
[1743362797422,1.697,603.84,603.32,0.2882656]
[1743362799023,1.697,603.84,603.31,0.33150453]
[1743362800323,1.697,603.84,603.32,0.28825128]
[1743362800825,1.697,603.84,603.45,2.52036396]
[1743362802018,1.697,603.84,603.48,2.52036396]
[1743362803624,1.697,603.84,603.41,2.52036396]
[1743362804625,1.697,603.84,603.46,2.52036396]
[1743362806722,1.697,603.84,603.44,2.52036396]
[1743362808428,1.697,603.84,603.43,2.52036396]
[1743362809228,1.444,603.83,603.43,2.52036396]
[1743362809428,1.444,603.83,603.43,2.80859614]
[1743362809928,1.444,603.83,603.46,2.52036396]
[1743362810925,1.444,603.83,603.47,2.52036396]
[1743362812224,1.444,603.83,603.38,2.52036396]
[1743362812424,1.444,603.83,603.45,0.2882286]
[1743362814032,1.444,603.83,603.42,2.52036396]
[1743362814634,1.444,603.83,603.47,2.52036396]
[1743362816936,2.96,603.83,603.47,2.52036396]
[1743362817732,2.96,603.83,603.4,2.52036396]
[1743362818441,4.148,603.83,603.41,0.28821547]
[1743362819042,4.148,603.83,603.42,2.52036396]
[1743362820337,4.148,603.83,603.45,2.52036396]
[1743362821746,4.148,603.83,603.46,2.52036396]
[1743362823245,4.148,603.83,603.47,2.52036396]
[1743362824240,4.148,603.83,603.45,2.52036396]
[1743362824445,4.148,603.83,603.45,2.80856152]
[1743362826145,4.148,603.83,603.45,2.52036396]
[1743362827343,4.148,603.83,603.45,2.80856391]
[1743362827748,4.148,603.83,603.45,0.28819995]
[1743362829145,4.148,603.83,603.35,2.52036396]
[1743362829349,4.148,603.83,603.36,0.33147706]
[1743362830349,4.148,603.83,603.37,0.28821189]
[1743362830549,4.148,603.83,603.38,0.33146607]
[1743362832251,4.148,603.83,603.42,2.52036396]
[1743362833044,4.148,603.83,603.49,2.52036396]
[1743362834550,4.148,603.83,603.38,0.33146607]
[1743362834551,4.148,603.83,603.51,2.52036396]
[1743362835851,4.148,603.83,603.53,2.52036396]
[1743362836854,4.148,603.83,603.56,2.52036396]
[1743362837553,2.96,603.83,603.56,2.52036396]
[1743362838454,2.96,603.83,603.38,0.33146607]
[1743362838455,2.96,603.83,603.6,2.52036396]
[1743362839950,1.444,603.83,603.53,0.28818205]
[1743362841056,1.444,603.83,603.47,2.52036396]
[1743362841956,1.444,603.83,603.38,0.33146607]
[1743362841957,1.444,603.83,603.5,2.52036396]
[1743362842351,1.444,603.83,603.51,0.2881916]
[1743362844056,1.444,603.83,603.4,2.52036396]
[1743362845159,1.444,603.83,603.38,0.33146607]
[1743362845359,1.444,603.83,603.41,0.28821785]
[1743362846762,1.444,603.83,603.43,2.52036396]
[1743362848154,1.444,603.83,603.44,2.52036396]
[1743362849562,1.444,603.83,603.47,2.52036396]
[1743362851362,1.444,603.83,603.48,2.52036396]
[1743362852862,1.444,603.83,603.56,2.52036396]
[1743362853058,1.444,603.83,603.69,2.52036396]
[1743362854861,1.444,603.83,603.79,2.52036396]
[1743362856064,1.444,603.83,603.78,2.52036396]
[1743362858665,1.444,603.83,603.7,2.52036396]
[1743362859766,1.444,603.83,603.71,2.52036396]
[1743362860269,1.493,603.85,603.71,2.52036396]
[1743362862468,1.673,603.87,603.71,2.52036396]
[1743362864074,1.673,603.87,603.57,2.52036396]
[1743362865468,1.673,603.87,603.56,0.28819279]
[1743362865874,1.47,603.91,603.56,0.28819279]
[1743362866770,1.47,603.91,603.57,2.52036396]
[1743362867672,1.47,603.91,603.65,2.52036396]
[1743362868882,1.47,603.91,603.47,0.28820711]
[1743362871077,1.47,603.91,603.38,0.33146607]
[1743362871480,1.47,603.91,603.45,0.28824411]
[1743362874180,1.47,603.91,603.38,0.33146607]
[1743362875479,1.47,603.91,603.39,0.2883074]
[1743362877178,1.47,603.91,603.38,0.33146607]
[1743362877377,1.47,603.91,603.39,0.28824411]
[1743362880186,1.47,603.91,603.38,0.33146607]
[1743362881482,1.47,603.91,603.39,0.28824531]
[1743362883086,1.47,603.91,603.38,0.33146607]
[1743362885488,1.248,604.05,603.38,0.33146607]
[1743362887787,1.263,604.04,603.38,0.33146607]
[1743362899105,1.101,604.03,603.38,0.33146607]
[1743362904607,1.092,604.02,603.38,0.33146607]
[1743362905711,1.169,604.01,603.38,0.33146607]
[1743362906110,1.169,604.01,603.55,2.52036396]
[1743362907615,1.169,604.01,603.49,2.52036396]
[1743362909715,1.169,604.01,603.48,2.52036396]
[1743362916717,1.169,604.01,603.47,2.52036396]
[1743362921124,1.169,604.01,603.46,0.28820711]
[1743362922326,1.169,604.01,603.42,2.52036396]
[1743362922526,1.169,604.01,603.46,0.28821785]
[1743362924930,1.169,604.01,603.38,0.33146607]
[1743362925325,1.169,604.01,603.39,0.28821905]
[1743362928129,1.169,604.01,603.38,0.33146607]
[1743362928633,1.169,604.01,603.39,0.28821785]
[1743362931034,1.169,604.01,603.45,2.52036396]
[1743362934732,1.092,604.02,603.45,2.52036396]
[1743362935736,1.092,604.02,603.53,2.52036396]
[1743362937436,1.092,604.02,603.57,2.52036396]
[1743362937638,1.766,604.01,603.57,2.52036396]
[1743362944445,1.766,604.01,603.58,2.52036396]
[1743362945943,1.766,604.01,603.49,0.28819279]
[1743362945944,1.766,604.01,603.61,2.52036396]
[1743362946647,1.766,604.01,603.53,2.52036396]
[1743362947751,1.766,604.01,603.5,0.28818802]
[1743362950549,1.766,604.01,603.51,2.52036396]
[1743362951955,1.766,604.01,603.5,0.28818802]
[1743362952254,1.766,604.01,603.47,2.52036396]
[1743362953454,1.766,604.01,603.48,0.28820472]
[1743362954157,1.363,604.0,603.48,0.28820472]
[1743362954857,1.03,603.99,603.48,0.28820472]
[1743362955256,1.03,603.99,603.47,2.52036396]
[1743362956358,1.03,603.99,603.48,0.28820711]
[1743362958056,1.03,603.99,603.56,2.52036396]
[1743362959762,1.03,603.99,603.59,2.52036396]
[1743362962160,1.03,603.99,603.47,2.52036396]
[1743362962161,1.03,603.99,603.6,2.52036396]
[1743362964170,1.03,603.99,603.62,2.52036396]
[1743362967469,1.03,603.99,603.55,2.52036396]
[1743362968761,1.03,603.99,603.52,0.28819518]
[1743362968762,1.03,603.99,603.57,2.52036396]
[1743362970370,1.41,603.98,603.56,2.52036396]
[1743362971164,1.41,603.98,603.57,2.52036396]
[1743362972670,1.41,603.98,603.56,2.52036396]
[1743362974673,1.41,603.98,603.61,2.52036396]
[1743362979375,1.41,603.98,603.45,2.52036396]
[1743362980469,1.41,603.98,603.46,0.28820831]
[1743362980676,1.41,603.98,603.46,2.80857227]
[1743362982172,1.41,603.98,603.46,2.52036396]
[1743362982681,1.41,603.98,603.46,0.28820711]
[1743362985078,1.41,603.98,603.38,0.33146607]
[1743362985480,1.41,603.98,603.39,0.28823576]
[1743362988285,1.41,603.98,603.38,0.33146607]
[1743362988484,1.363,604.0,603.38,0.33146607]
[1743362989587,1.363,604.0,603.39,0.28823576]
[1743362990082,1.457,603.99,603.39,0.28823576]
[1743362991089,1.457,603.99,603.38,0.33146607]
[1743362991387,1.457,603.99,603.39,0.28821547]
[1743362992381,1.44,603.98,603.39,0.28821547]
[1743362994384,1.44,603.98,603.55,2.52036396]
[1743362998287,1.44,603.98,603.44,0.28819637]
[1743362998288,1.44,603.98,603.5,2.52036396]
[1743362999891,1.44,603.98,603.44,0.28819637]
[1743363000286,1.44,603.98,603.38,0.33146607]
[1743363000686,1.44,603.98,603.44,0.28821666]
[1743363001291,1.44,603.98,603.38,0.33146607]
[1743363001795,1.44,603.98,603.44,0.28821666]
[1743363003095,1.44,603.98,603.38,0.33146607]
[1743363004488,1.44,603.98,603.39,0.2882274]
[1743363005488,1.457,603.99,603.39,0.2882274]
[1743363006096,1.457,603.99,603.38,2.85183003]
[1743363007298,1.457,603.99,603.39,0.28822263]
[1743363008399,1.191,603.98,603.39,0.28822263]
[1743363009191,1.191,603.98,603.38,0.33146607]
[1743363010598,1.191,603.98,603.39,0.28822621]
[1743363010995,1.191,603.98,603.41,2.52036396]
[1743363012394,1.191,603.98,603.54,2.52036396]
[1743363016100,1.191,603.98,603.55,2.52036396]
[1743363017700,1.191,603.98,603.6,2.52036396]
[1743363019709,1.191,603.98,603.55,2.52036396]
[1743363021107,1.223,603.97,603.55,2.52036396]
[1743363023011,1.223,603.97,603.56,2.52036396]
[1743363025812,1.223,603.97,603.54,2.52036396]
[1743363026808,1.223,603.97,603.5,2.52036396]
[1743363028516,1.223,603.97,603.54,2.52036396]
[1743363030011,1.223,603.97,603.49,0.28821069]
[1743363030216,1.223,603.97,603.43,2.52036396]
[1743363030613,1.223,603.97,603.49,0.28821905]
[1743363033220,1.223,603.97,603.39,2.52036396]
[1743363033617,1.223,603.97,603.49,0.28819518]
[1743363033814,1.223,603.97,603.39,2.52036396]
[1743363035118,1.223,603.97,603.51,2.52036396]
[1743363036615,1.223,603.97,603.45,2.52036396]
[1743363037223,1.299,603.96,603.45,2.52036396]
[1743363038018,1.299,603.96,603.47,2.52036396]
[1743363039220,1.299,603.96,603.43,2.52036396]
[1743363039625,1.29404087,603.96,603.45,0.28814864]
[1743363039820,1.29404087,603.96,603.46,0.33142213]
[1743363040126,1.223,603.97,603.46,0.33142213]
[1743363041528,1.443,603.96,603.46,0.33142213]
[1743363050833,1.443,603.96,603.59,2.52036396]
[1743363053738,1.443,603.96,603.51,0.28813433]
[1743363053940,1.443,603.96,603.52,0.33138918]
[1743363054632,1.583,604.45,603.52,0.33138918]
[1743363056938,3.206,604.45,603.52,0.33138918]
[1743363061440,0.28817967,604.44,603.52,0.33138918]
[1743363063341,3.206,604.45,603.52,0.33138918]
[1743363064550,0.2881916,604.44,603.52,0.33138918]
[1743363065341,4.291,604.45,603.52,0.33138918]
[1743363090274,4.291,604.45,603.58,2.52036396]
[1743363090469,4.291,604.45,603.58,2.8517202]
[1743363091675,4.291,604.45,603.58,0.33135624]
[1743363100480,4.291,604.45,603.8,2.52036396]
[1743363101579,4.291,604.45,603.89,2.52036396]
[1743363101976,2.708,604.45,603.89,2.52036396]
[1743363102883,2.708,604.45,603.88,2.52036396]
[1743363104577,2.708,604.45,603.89,2.52036396]
[1743363105382,4.233,604.45,603.89,2.52036396]